fUSD/lending_fUSD_20250629
["ID","MTS","AMOUNT","RATE_DAILY","PERIOD"]
[368462689,1751185850822,-500.0,0.00027397,3]
[368462691,1751185850831,-490.0,0.00027397,3]
[368462693,1751185850840,-490.0,0.00027397,3]
[368462695,1751185850850,-4755.23,0.00027397,3]
[368462697,1751185850859,-490.0,0.00027397,3]
[368462699,1751185850869,-900.98,0.00027397,3]
[368462701,1751185850878,-500.0,0.00027397,3]
[368462703,1751185850888,-5391.65,0.00027397,3]
[368462705,1751185850897,-8471.12,0.00027397,3]
[368462707,1751185850907,-490.0,0.00027397,3]
[368462708,1751185850916,-490.0,0.00027397,3]
[368462709,1751185850926,-1166.27,0.00027397,3]
[368462710,1751185850935,-2985.68,0.00027397,3]
[368462711,1751185850944,-9154.24,0.00027397,3]
[368462712,1751185850954,-490.0,0.00027397,3]
[368462713,1751185850963,-490.0,0.00027397,3]
[368462714,1751185850973,-1208.72,0.00027397,3]
[368462715,1751185850984,-1594.05,0.00027397,3]
[368462716,1751185850993,-1413.99,0.00027397,3]
[368462717,1751185851002,-500.0,0.00027397,3]
[368462718,1751185851012,-490.0,0.00027397,3]
[368462719,1751185851022,-490.0,0.00027397,3]
[368462720,1751185851031,-1103.75,0.00027397,3]
[368462721,1751185851040,-500.0,0.00027397,3]
[368462722,1751185851051,-592.88940154,0.00027397,3]
[368462723,1751185851060,-1084.2,0.00027397,3]
[368462724,1751185851070,-438.37,0.00027397,3]
[368462725,1751185851080,-2507.12,0.00027397,3]
[368462726,1751185851089,-2060.52,0.00027397,3]
[368462727,1751185851099,-490.0,0.00027397,3]
[368462728,1751185851109,-490.0,0.00027397,3]
[368462729,1751185851118,-540.87,0.00027397,3]
[368462730,1751185851128,-490.0,0.00027397,3]
[368462731,1751185851139,-490.0,0.00027397,3]
[368462732,1751185851148,-2107.71,0.00027397,3]
[368462733,1751185851158,-490.0,0.00027397,3]
[368462734,1751185851167,-1391.99,0.00027397,3]
[368462735,1751185851177,-387.58621687,0.00027397,3]
[368462736,1751185851186,-490.0,0.00027397,3]
[368462737,1751185851196,-490.0,0.00027397,3]
[368462738,1751185851206,-490.0,0.00027397,3]
[368462739,1751185851215,-3124.186296,0.00027397,3]
[368462740,1751185851226,-5759.28,0.00027397,3]
[368462741,1751185851237,-1696.7,0.00027397,3]
[368462742,1751185851250,-2163.97,0.00027397,3]
[368462743,1751185851261,-500.0,0.00027397,3]
[368462744,1751185851270,-500.0,0.00027397,3]
[368462745,1751185851280,-500.0,0.00027397,3]
[368462746,1751185851289,-500.0,0.00027397,3]
[368462747,1751185851299,-4350.59,0.00027397,3]
[368462748,1751185851309,-500.0,0.00027397,3]
[368462749,1751185851319,-500.0,0.00027397,3]
[368462750,1751185851329,-1771.4,0.00027397,3]
[368462751,1751185851339,-490.0,0.00027397,3]
[368462752,1751185851348,-490.0,0.00027397,3]
[368462753,1751185851359,-490.0,0.00027397,3]
[368462754,1751185851368,-1699.5,0.00027397,3]
[368462755,1751185851378,-2163.38,0.00027397,3]
[368462756,1751185851387,-500.0,0.00027397,3]
[368462757,1751185851397,-500.0,0.00027397,3]
[368462758,1751185851406,-500.0,0.00027397,3]
[368462759,1751185851416,-9320.9,0.00027397,3]
[368462760,1751185851426,-500.0,0.00027397,3]
[368462761,1751185851435,-500.0,0.00027397,3]
[368462762,1751185851445,-640.42,0.00027397,3]
[368462763,1751185851455,-490.0,0.00027397,3]
[368462764,1751185851464,-490.0,0.00027397,3]
[368462765,1751185851474,-500.0,0.00027397,3]
[368462766,1751185851483,-490.0,0.00027397,3]
[368462767,1751185851494,-500.0,0.00027397,3]
[368462768,1751185851503,-490.0,0.00027397,3]
[368462769,1751185851513,-500.0,0.00027397,3]
[368462770,1751185851523,-490.0,0.00027397,3]
[368462771,1751185851532,-490.0,0.00027397,3]
[368462772,1751185851542,-698.7,0.00027397,3]
[368462773,1751185851552,-500.0,0.00027397,3]
[368462774,1751185851562,-244.18545128,0.00027397,3]
[368462775,1751185851571,-490.0,0.00027397,3]
[368462776,1751185851581,-490.0,0.00027397,3]
[368462777,1751185851591,-2614.35,0.00027397,3]
[368462778,1751185851600,-1887.85,0.00027397,3]
[368462779,1751185851610,-2329.02,0.00027397,3]
[368462780,1751185851619,-490.0,0.00027397,3]
[368462781,1751185851629,-2011.71,0.00027397,3]
[368462782,1751185851639,-5321.88,0.00027397,3]
[368462783,1751185851649,-3550.0,0.00027397,3]
[368462784,1751185851658,-2620.54,0.00027397,3]
[368462785,1751185851668,-496.34,0.00027397,3]
[368462786,1751185851678,-490.0,0.00027397,3]
[368462787,1751185851687,-490.0,0.00027397,3]
[368462788,1751185851697,-490.0,0.00027397,3]
[368462789,1751185851707,-490.0,0.00027397,3]
[368462790,1751185851717,-3802.74,0.00027397,3]
[368462791,1751185851726,-490.0,0.00027397,3]
[368462792,1751185851736,-490.0,0.00027397,3]
[368462793,1751185851745,-490.0,0.00027397,3]
[368462794,1751185851756,-3410.483768,0.00027397,3]
[368462795,1751185851766,-490.0,0.00027397,3]
[368462796,1751185851776,-23086.97,0.00027397,3]
[368462797,1751185851786,-1453.18,0.00027397,3]
[368462798,1751185851796,-490.0,0.00027397,3]
[368462799,1751185851806,-2375.17,0.00027397,3]
[368462800,1751185851815,-490.0,0.00027397,3]
[368462801,1751185851825,-1316.21,0.00027397,3]
[368462802,1751185851836,-490.0,0.00027397,3]
[368462803,1751185851846,-1600.52,0.00027397,3]
[368462804,1751185851856,-2119.74,0.00027397,3]
[368462805,1751185851866,-952.37,0.00027397,3]
[368462806,1751185851876,-2324.39,0.00027397,3]
[368462807,1751185851887,-1298.62,0.00027397,3]
[368462808,1751185851897,-490.0,0.00027397,3]
[368462809,1751185851907,-490.0,0.00027397,3]
[368462810,1751185851917,-6482.39,0.00027397,3]
[368462811,1751185851927,-490.0,0.00027397,3]
[368462812,1751185851936,-490.0,0.00027397,3]
[368462813,1751185851946,-490.0,0.00027397,3]
[368462814,1751185851956,-1512.03,0.00027397,3]
[368462815,1751185851966,-490.0,0.00027397,3]
[368462816,1751185851976,-490.0,0.00027397,3]
[368462817,1751185851986,-490.0,0.00027397,3]
[368462818,1751185851995,-490.0,0.00027397,3]
[368462820,1751185852005,-1530.06,0.00027397,3]
[368462822,1751185852014,-490.0,0.00027397,3]
[368462824,1751185852024,-1246.63,0.00027397,3]
[368462826,1751185852034,-2328.927373,0.00027397,3]
[368462828,1751185852044,-910.52,0.00027397,3]
[368462830,1751185852053,-490.0,0.00027397,3]
[368462832,1751185852063,-490.0,0.00027397,3]
[368462834,1751185852072,-604.46,0.00027397,3]
[368462836,1751185852082,-1524.04,0.00027397,3]
[368462838,1751185852092,-2148.66,0.00027397,3]
[368462840,1751185852101,-158.454064,0.00027397,3]
[368462842,1751185852111,-1026.64,0.00027397,3]
[368462844,1751185852121,-1940.29,0.00027397,3]
[368462846,1751185852131,-5786.31,0.00027397,3]
[368462848,1751185852140,-155.06607111,0.00027397,3]
[368462850,1751185852150,-4246.41,0.00027397,3]
[368462852,1751185852160,-490.0,0.00027397,3]
[368462855,1751185852170,-490.0,0.00027397,3]
[368462856,1751185852179,-490.0,0.00027397,3]
[368462858,1751185852189,-151.887035,0.00027397,3]
[368462860,1751185852199,-490.0,0.00027397,3]
[368462862,1751185852209,-383.060719,0.00027397,3]
[368462864,1751185852218,-1203.82,0.00027397,3]
[368462866,1751185852228,-678.2,0.00027397,2]
[368462868,1751185852237,-678.2,0.00027397,2]
[368462871,1751185852251,-678.2,0.00027397,2]
[368462872,1751185852261,-615.65,0.00027397,3]
[368462875,1751185852270,-3874.88,0.00027397,3]
[368462876,1751185852280,-490.0,0.00027397,3]
[368462879,1751185852290,-4800.37,0.00027397,3]
[368462881,1751185852300,-1112.76,0.00027397,3]
[368462883,1751185852310,-490.0,0.00027397,3]
[368462885,1751185852322,-2238.39,0.00027397,3]
[368462887,1751185852332,-1772.52,0.00027397,3]
[368462889,1751185852342,-1799.49,0.00027397,3]
[368462891,1751185852351,-490.0,0.00027397,3]
[368462893,1751185852361,-2400.02,0.00027397,3]
[368462895,1751185852370,-545.18,0.00027397,3]
[368462897,1751185852379,-490.0,0.00027397,3]
[368462899,1751185852389,-678.2,0.00027397,2]
[368462901,1751185852399,-678.2,0.00027397,2]
[368462903,1751185852409,-678.2,0.00027397,2]
[368462905,1751185852419,-678.2,0.00027397,2]
[368462906,1751185852428,-4673.37,0.00027397,3]
[368462908,1751185852438,-678.2,0.00027397,2]
[368462911,1751185852448,-678.2,0.00027397,2]
[368462913,1751185852458,-678.2,0.00027397,2]
[368462915,1751185852467,-490.0,0.00027397,3]
[368462916,1751185852476,-3324.78,0.00027397,3]
[368462918,1751185852486,-678.2,0.00027397,2]
[368462919,1751185852496,-2973.53,0.00027397,3]
[368462920,1751185852505,-2487.54,0.00027397,3]
[368462921,1751185852514,-490.0,0.00027397,3]
[368462922,1751185852523,-490.0,0.00027397,3]
[368462923,1751185852532,-490.0,0.00027397,3]
[368462924,1751185852542,-490.0,0.00027397,3]
[368462925,1751185852551,-4010.98,0.00027397,3]
[368462926,1751185852560,-490.0,0.00027397,3]
[368462927,1751185852570,-490.0,0.00027397,3]
[368462928,1751185852579,-490.0,0.00027397,3]
[368462929,1751185852588,-2074.99,0.00027397,3]
[368462930,1751185852597,-3084.36,0.00027397,3]
[368462931,1751185852606,-1635.58,0.00027397,3]
[368462932,1751185852616,-498.26,0.00027397,3]
[368462933,1751185852625,-490.0,0.00027397,3]
[368462934,1751185852635,-638.41,0.00027397,3]
[368462936,1751185852645,-490.0,0.00027397,3]
[368462937,1751185852654,-497.11,0.00027397,3]
[368462939,1751185852664,-490.0,0.00027397,3]
[368462941,1751185852674,-1092.3,0.00027397,3]
[368462943,1751185852683,-1247.41,0.00027397,3]
[368462945,1751185852693,-490.0,0.00027397,3]
[368462947,1751185852702,-490.0,0.00027397,3]
[368462949,1751185852711,-300.0,0.00027397,2]
[368462951,1751185852722,-490.0,0.00027397,3]
[368462953,1751185852732,-490.0,0.00027397,3]
[368462955,1751185852741,-490.0,0.00027397,3]
[368462957,1751185852752,-11460.36,0.00027397,3]
[368462959,1751185852762,-4367.38,0.00027397,3]
[368462961,1751185852772,-1556.67,0.00027397,3]
[368462963,1751185852781,-490.0,0.00027397,3]
[368462965,1751185852791,-695.23,0.00027397,3]
[368462967,1751185852801,-3034.96,0.00027397,3]
[368462969,1751185852810,-490.0,0.00027397,3]
[368462971,1751185852820,-500.0,0.00027397,3]
[368462973,1751185852829,-490.0,0.00027397,3]
[368462975,1751185852839,-533.14,0.00027397,3]
[368462977,1751185852848,-500.0,0.00027397,3]
[368462980,1751185852858,-500.0,0.00027397,3]
[368462981,1751185852868,-509.94558105,0.00027397,3]
[368462982,1751185852878,-500.0,0.00027397,3]
[368462983,1751185852888,-500.0,0.00027397,3]
[368462984,1751185852897,-1739.53,0.00027397,3]
[368462985,1751185852907,-500.0,0.00027397,3]
[368462986,1751185852917,-500.0,0.00027397,3]
[368462987,1751185852927,-2922.67,0.00027397,3]
[368462988,1751185852936,-500.0,0.00027397,3]
[368462989,1751185852946,-490.0,0.00027397,3]
[368462990,1751185852956,-500.0,0.00027397,3]
[368462991,1751185852965,-490.0,0.00027397,3]
[368462992,1751185852975,-959.09,0.00027397,3]
[368462993,1751185852984,-500.0,0.00027397,3]
[368462994,1751185852994,-500.0,0.00027397,3]
[368462995,1751185853003,-524.56,0.00027397,3]
[368462996,1751185853014,-490.0,0.00027397,3]
[368462997,1751185853024,-500.0,0.00027397,3]
[368462998,1751185853034,-500.0,0.00027397,3]
[368462999,1751185853043,-2262.56,0.00027397,3]
[368463000,1751185853054,-490.0,0.00027397,3]
[368463001,1751185853064,-588.58,0.00027397,3]
[368463002,1751185853074,-490.0,0.00027397,3]
[368463003,1751185853379,-2699.23,0.00027397,3]
[368463004,1751185853397,-2070.75,0.00027397,3]
[368463005,1751185853407,-490.0,0.00027397,3]
[368463006,1751185853416,-490.0,0.00027397,3]
[368463007,1751185853426,-3500.5,0.00027397,3]
[368463008,1751185853436,-4344.42,0.00027397,3]
[368463009,1751185853447,-490.0,0.00027397,3]
[368463010,1751185853456,-1268.26,0.00027397,3]
[368463011,1751185853467,-1978.93,0.00027397,3]
[368463012,1751185853476,-804.4,0.00027397,3]
[368463013,1751185853486,-3001.83,0.00027397,3]
[368463014,1751185853495,-500.0,0.00027397,3]
[368463015,1751185853504,-500.0,0.00027397,3]
[368463016,1751185853513,-517.05035662,0.00027397,3]
[368463017,1751185853523,-1676.72,0.00027397,3]
[368463018,1751185853532,-1497.88,0.00027397,3]
[368463019,1751185853542,-490.0,0.00027397,3]
[368463020,1751185853551,-2599.33,0.00027397,3]
[368463021,1751185853560,-490.0,0.00027397,3]
[368463022,1751185853570,-1028.47,0.00027397,3]
[368463023,1751185853579,-1000.0,0.00027397,3]
[368463024,1751185853588,-3474.52,0.00027397,3]
[368463025,1751185853597,-490.0,0.00027397,3]
[368463026,1751185853606,-2709.73,0.00027397,3]
[368463027,1751185853616,-7095.28,0.00027397,3]
[368463028,1751185853627,-1864.69,0.00027397,3]
[368463029,1751185853636,-490.0,0.00027397,3]
[368463030,1751185853646,-1797.4,0.00027397,3]
[368463031,1751185853655,-959.32,0.00027397,3]
[368463032,1751185853665,-490.0,0.00027397,3]
[368463033,1751185853674,-1682.87,0.00027397,3]
[368463034,1751185853683,-490.0,0.00027397,3]
[368463035,1751185853692,-2061.36,0.00027397,3]
[368463036,1751185853701,-7416.95,0.00027397,3]
[368463037,1751185853711,-1997.53,0.00027397,3]
[368463038,1751185853720,-490.0,0.00027397,3]
[368463039,1751185853729,-3710.81,0.00027397,3]
[368463040,1751185853738,-490.0,0.00027397,3]
[368463041,1751185853750,-490.0,0.00027397,3]
[368463042,1751185853759,-2205.27,0.00027397,3]
[368463043,1751185853769,-490.0,0.00027397,3]
[368463044,1751185853778,-2593.7,0.00027397,3]
[368463045,1751185853788,-495.7195587,0.00027397,3]
[368463046,1751185853797,-490.0,0.00027397,3]
[368463047,1751185853807,-490.0,0.00027397,3]
[368463048,1751185853817,-536.91,0.00027397,3]
[368463049,1751185853827,-490.0,0.00027397,3]
[368463050,1751185853836,-158.05892006,0.00027397,3]
[368463051,1751185853845,-2986.63,0.00027397,3]
[368463052,1751185853855,-1926.64,0.00027397,3]
[368463053,1751185853864,-5450.78,0.00027397,3]
[368463054,1751185853873,-490.0,0.00027397,3]
[368463055,1751185853883,-10543.21,0.00027397,3]
[368463056,1751185853892,-4440.61,0.00027397,3]
[368463057,1751185853901,-490.0,0.00027397,3]
[368463058,1751185853911,-476.85905077,0.00027397,3]
[368463059,1751185853920,-490.0,0.00027397,3]
[368463060,1751185853930,-1953.13,0.00027397,3]
[368463061,1751185853939,-2152.02,0.00027397,3]
[368463062,1751185853948,-490.0,0.00027397,3]
[368463063,1751185853958,-619.11521949,0.00027397,3]
[368463064,1751185853966,-27383.15,0.00027397,3]
[368463065,1751185853976,-500.0,0.00027397,3]
[368463066,1751185853985,-490.0,0.00027397,3]
[368463067,1751185853994,-490.0,0.00027397,3]
[368463068,1751185854004,-5684.11,0.00027397,3]
[368463069,1751185854014,-3055.7,0.00027397,3]
[368463070,1751185854024,-616.14,0.00027397,3]
[368463071,1751185854033,-2590.17,0.00027397,3]
[368463072,1751185854043,-755.13,0.00027397,3]
[368463073,1751185854052,-2305.61,0.00027397,3]
[368463074,1751185854062,-6529.26,0.00027397,3]
[368463075,1751185854071,-6907.47,0.00027397,3]
[368463076,1751185854081,-874.69,0.00027397,3]
[368463077,1751185854091,-490.0,0.00027397,3]
[368463078,1751185854100,-1334.67,0.00027397,3]
[368463079,1751185854110,-813.04,0.00027397,3]
[368463080,1751185854119,-490.0,0.00027397,3]
[368463081,1751185854129,-2725.74,0.00027397,3]
[368463082,1751185854138,-415.49815509,0.00027397,3]
[368463083,1751185854147,-2573.05,0.00027397,3]
[368463084,1751185854156,-490.0,0.00027397,3]
[368463085,1751185854165,-495.51,0.00027397,3]
[368463086,1751185854175,-3007.4,0.00027397,3]
[368463087,1751185854184,-1501.79,0.00027397,3]
[368463088,1751185854193,-2257.23,0.00027397,3]
[368463089,1751185854202,-490.0,0.00027397,3]
[368463090,1751185854211,-589.87,0.00027397,3]
[368463091,1751185854220,-1476.95,0.00027397,3]
[368463092,1751185854229,-3298.9,0.00027397,3]
[368463093,1751185854240,-2866.22,0.00027397,3]
[368463094,1751185854251,-490.0,0.00027397,3]
[368463095,1751185854260,-2960.77,0.00027397,3]
[368463096,1751185854270,-2604.81,0.00027397,3]
[368463097,1751185854280,-490.0,0.00027397,3]
[368463098,1751185854290,-704.07,0.00027397,3]
[368463099,1751185854298,-6569.2,0.00027397,3]
[368463100,1751185854308,-490.0,0.00027397,3]
[368463101,1751185854318,-490.0,0.00027397,3]
[368463102,1751185854328,-1542.2,0.00027397,3]
[368463103,1751185854337,-2083.46,0.00027397,3]
[368463104,1751185854346,-490.0,0.00027397,3]
[368463105,1751185854356,-13967.34,0.00027397,3]
[368463106,1751185854365,-2392.65,0.00027397,3]
[368463107,1751185854375,-490.0,0.00027397,3]
[368463108,1751185854384,-4527.23,0.00027397,3]
[368463109,1751185854394,-633.9,0.00027397,3]
[368463110,1751185854403,-2357.66,0.00027397,3]
[368463111,1751185854413,-1040.66,0.00027397,3]
[368463112,1751185854423,-501.24911658,0.00027397,3]
[368463113,1751185854432,-575.11,0.00027397,3]
[368463114,1751185854442,-490.0,0.00027397,3]
[368463115,1751185854451,-704.11,0.00027397,3]
[368463116,1751185854461,-490.0,0.00027397,3]
[368463117,1751185854470,-490.0,0.00027397,3]
[368463118,1751185854479,-490.0,0.00027397,3]
[368463119,1751185854489,-2037.42,0.00027397,3]
[368463120,1751185854498,-2354.44,0.00027397,3]
[368463121,1751185854507,-490.0,0.00027397,3]
[368463122,1751185854516,-4466.24,0.00027397,3]
[368463123,1751185854526,-500.0,0.00027397,3]
[368463124,1751185854536,-490.0,0.00027397,3]
[368463125,1751185854545,-500.0,0.00027397,3]
[368463126,1751185854555,-901.79,0.00027397,3]
[368463127,1751185854564,-500.0,0.00027397,3]
[368463128,1751185854573,-2171.25,0.00027397,3]
[368463129,1751185854582,-2749.52,0.00027397,3]
[368463130,1751185854591,-500.0,0.00027397,3]
[368463131,1751185854601,-500.0,0.00027397,3]
[368463132,1751185854611,-500.0,0.00027397,3]
[368463133,1751185854621,-490.0,0.00027397,3]
[368463134,1751185854630,-1113.69,0.00027397,3]
[368463135,1751185854639,-1793.39,0.00027397,3]
[368463136,1751185854649,-937.16,0.00027397,3]
[368463137,1751185854658,-662.82,0.00027397,3]
[368463138,1751185854667,-500.0,0.00027397,3]
[368463139,1751185854677,-490.0,0.00027397,3]
[368463140,1751185854686,-500.0,0.00027397,3]
[368463141,1751185854695,-1727.59,0.00027397,3]
[368463142,1751185854704,-2798.18,0.00027397,3]
[368463143,1751185854714,-490.0,0.00027397,3]
[368463144,1751185854723,-490.0,0.00027397,3]
[368463145,1751185854733,-500.0,0.00027397,3]
[368463146,1751185854742,-200.0,0.00027397,2]
[368463147,1751185854751,-500.0,0.00027397,3]
[368463148,1751185854760,-500.0,0.00027397,3]
[368463149,1751185854770,-500.0,0.00027397,3]
[368463150,1751185854780,-500.0,0.00027397,3]
[368463151,1751185854789,-490.0,0.00027397,3]
[368463152,1751185854799,-490.0,0.00027397,2]
[368463153,1751185854809,-490.0,0.00027397,3]
[368463154,1751185854819,-833.03,0.00027397,3]
[368463155,1751185854829,-5037.2,0.00027397,3]
[368463156,1751185854838,-490.0,0.00027397,3]
[368463157,1751185854847,-490.0,0.00027397,3]
[368463158,1751185854857,-2202.74,0.00027397,3]
[368463159,1751185854866,-1850.45,0.00027397,3]
[368463160,1751185854875,-2500.0,0.00027397,3]
[368463161,1751185854885,-2343.05,0.00027397,3]
[368463162,1751185854894,-490.0,0.00027397,3]
[368463163,1751185854904,-2594.7,0.00027397,3]
[368463164,1751185854913,-490.0,0.00027397,3]
[368463165,1751185854923,-490.0,0.00027397,3]
[368463166,1751185854932,-531.04,0.00027397,3]
[368463167,1751185854942,-490.0,0.00027397,3]
[368463168,1751185854951,-1521.97,0.00027397,3]
[368463169,1751185854961,-1527.19,0.00027397,3]
[368463170,1751185854971,-1794.96,0.00027397,3]
[368463171,1751185854980,-490.0,0.00027397,3]
[368463172,1751185854990,-490.0,0.00027397,3]
[368463173,1751185855000,-490.0,0.00027397,3]
[368463174,1751185855010,-490.0,0.00027397,3]
[368463175,1751185855019,-490.0,0.00027397,3]
[368463176,1751185855028,-490.0,0.00027397,3]
[368463177,1751185855038,-10070.61,0.00027397,3]
[368463178,1751185855047,-13288.01,0.00027397,3]
[368463179,1751185855057,-1915.49,0.00027397,3]
[368463180,1751185855067,-490.0,0.00027397,3]
[368463181,1751185855076,-490.0,0.00027397,3]
[368463182,1751185855085,-490.0,0.00027397,3]
[368463183,1751185855094,-643.17,0.00027397,3]
[368463184,1751185855103,-724.03,0.00027397,3]
[368463185,1751185855112,-490.0,0.00027397,3]
[368463186,1751185855122,-714.92,0.00027397,3]
[368463187,1751185855132,-842.85,0.00027397,3]
[368463188,1751185855141,-1872.32,0.00027397,3]
[368463189,1751185855150,-1064.28,0.00027397,3]
[368463190,1751185855159,-490.0,0.00027397,3]
[368463191,1751185855169,-2347.74,0.00027397,3]
[368463192,1751185855178,-2051.45,0.00027397,3]
[368463193,1751185855187,-5374.83,0.00027397,3]
[368463194,1751185855197,-490.0,0.00027397,3]
[368463195,1751185855206,-490.0,0.00027397,3]
[368463196,1751185855215,-517.42971948,0.00027397,3]
[368463197,1751185855225,-2109.84,0.00027397,3]
[368463198,1751185855235,-1037.35,0.00027397,3]
[368463199,1751185855248,-490.0,0.00027397,3]
[368463200,1751185855257,-490.0,0.00027397,3]
[368463201,1751185855266,-490.0,0.00027397,3]
[368463202,1751185855275,-490.0,0.00027397,3]
[368463203,1751185855285,-23391.32,0.00027397,3]
[368463204,1751185855295,-490.0,0.00027397,3]
[368463205,1751185855304,-1440.38,0.00027397,3]
[368463206,1751185855313,-490.0,0.00027397,3]
[368463207,1751185855322,-1235.34,0.00027397,3]
[368463208,1751185855331,-3277.04,0.00027397,3]
[368463209,1751185855341,-490.0,0.00027397,3]
[368463210,1751185855350,-1285.74,0.00027397,3]
[368463211,1751185855361,-229.54,0.00027397,2]
[368463212,1751185855370,-411.10794653,0.00027398,2]
[368463213,1751185855380,-1965.09317534,0.00027403,2]
[368463214,1751185855389,-411.00587923,0.00027417,17]
[368463215,1751185855399,-764.56597064,0.00027434,2]
[368463216,1751185855408,-764.56597065,0.00027434,2]
[368463217,1751185855417,-2044.84373629,0.00027434,2]
[368463218,1751185855427,-1965.09317534,0.00027492,2]
[368463219,1751185855436,-2044.84373629,0.00027503,2]
[368463220,1751185855446,-168.0,0.00027554,2]
[368463221,1751185855456,-152.63619725,0.00027566,2]
[368463222,1751185855465,-2044.84373629,0.00027571,2]
[368463223,1751185855475,-577.89840193,0.00027571,2]
[368463224,1751185855485,-2676.17245662,0.00027571,2]
[368463225,1751185855495,-185.49347121,0.00027571,2]
[368463226,1751185855505,-1965.09317534,0.0002758,2]
[368463227,1751185855515,-411.00587923,0.0002759,17]
[368463228,1751185855525,-160.2056516,0.000276,30]
[368463229,1751185855535,-1288.44,0.00027606,3]
[368463230,1751185855544,-1965.09317534,0.00027668,2]
[368463231,1751185855553,-500.0,0.0002767,2]
[368463232,1751185855563,-500.0,0.0002767,2]
[368463233,1751185855572,-423.43145964,0.0002767,2]
[368463234,1751185855581,-500.0,0.0002767,2]
[368463235,1751185855591,-500.0,0.0002767,2]
[368463236,1751185855600,-500.0,0.0002767,2]
[368463237,1751185855610,-500.0,0.0002767,2]
[368463238,1751185855722,-186.20536281,0.0002767,2]
[368463239,1751185855733,-500.0,0.0002767,2]
[368463240,1751185855743,-500.0,0.0002767,2]
[368463241,1751185855753,-500.0,0.0002767,2]
[368463242,1751185855762,-500.0,0.0002767,2]
[368463243,1751185855771,-500.0,0.0002767,2]
[368463244,1751185855780,-500.0,0.0002767,2]
[368463245,1751185855790,-500.0,0.0002767,2]
[368463246,1751185855799,-500.0,0.0002767,2]
[368463247,1751185855810,-500.0,0.0002767,2]
[368463248,1751185855820,-500.0,0.0002767,2]
[368463249,1751185855829,-500.0,0.0002767,2]
[368463250,1751185855838,-185.37332722,0.0002767,2]
[368463251,1751185855848,-500.0,0.0002767,2]
[368463252,1751185855857,-500.0,0.0002767,2]
[368463253,1751185855867,-500.0,0.0002767,2]
[368463254,1751185855878,-500.0,0.0002767,2]
[368463255,1751185855887,-500.0,0.0002767,2]
[368463256,1751185855896,-500.0,0.0002767,2]
[368463257,1751185855906,-500.0,0.0002767,2]
[368463258,1751185855915,-440.19953118,0.0002767,2]
[368463259,1751185855924,-500.7000369,0.0002767,2]
[368463260,1751185855933,-500.7000369,0.0002767,2]
[368463261,1751185855943,-500.0,0.0002767,2]
[368463262,1751185855952,-500.7000369,0.0002767,2]
[368463263,1751185855961,-500.0,0.0002767,2]
[368463264,1751185855970,-500.7000369,0.0002767,2]
[368463265,1751185855980,-500.0,0.0002767,2]
[368463266,1751185855989,-500.7000369,0.0002767,2]
[368463267,1751185855999,-500.0,0.0002767,2]
[368463268,1751185856008,-500.7000369,0.0002767,2]
[368463269,1751185856017,-500.0,0.0002767,2]
[368463270,1751185856026,-500.7000369,0.0002767,2]